[Event "Early-Titled-Tuesday-Blitz-July-09-2024"]
[Site "Chess.com"]
[Date "2024.07.09"]
[Round "6"]
[White "Twinstulle"]
[Black "NowInChess"]
[Result "1-0"]
[WhiteElo "2389"]
[BlackElo "2198"]
[TimeControl "180+1"]
[EndTime "9:08:39 PDT"]
[Termination "Twinstulle won on time"]

1. Nf3 {[%clk 0:03:00.9]} 1... Nf6 {[%clk 0:02:59.5]} 2. g3 {[%clk 0:03:00.5]}
2... g6 {[%clk 0:02:59.8]} 3. Bg2 {[%clk 0:03:01]} 3... Bg7 {[%clk 0:03:00.4]}
4. c4 {[%clk 0:03:00]} 4... O-O {[%clk 0:02:58.1]} 5. O-O {[%clk 0:02:59.8]}
5... d6 {[%clk 0:02:58.5]} 6. Nc3 {[%clk 0:02:59.4]} 6... e5 {[%clk 0:02:58.6]}
7. d3 {[%clk 0:02:59.1]} 7... Nc6 {[%clk 0:02:56.9]} 8. Rb1 {[%clk 0:02:57.5]}
8... Nh5 {[%clk 0:02:56.7]} 9. b4 {[%clk 0:02:56.1]} 9... f5 {[%clk 0:02:53]}
10. b5 {[%clk 0:02:54.6]} 10... Ne7 {[%clk 0:02:52.8]} 11. Qb3 {[%clk
0:02:49.5]} 11... Kh8 {[%clk 0:02:48.7]} 12. a4 {[%clk 0:02:46.1]} 12... Be6
{[%clk 0:02:43.6]} 13. Ba3 {[%clk 0:02:45.3]} 13... b6 {[%clk 0:02:32.9]} 14.
Ng5 {[%clk 0:02:42]} 14... Bg8 {[%clk 0:02:33.1]} 15. Bxa8 {[%clk 0:02:40.5]}
15... Qxa8 {[%clk 0:02:34]} 16. e4 {[%clk 0:02:28.1]} 16... h6 {[%clk
0:02:22.8]} 17. Nh3 {[%clk 0:02:27]} 17... g5 {[%clk 0:02:10.4]} 18. f3 {[%clk
0:02:16.7]} 18... f4 {[%clk 0:01:58.4]} 19. g4 {[%clk 0:02:13]} 19... Qc8 {[%clk
0:01:44.3]} 20. Nf2 {[%clk 0:02:10.3]} 20... Nf6 {[%clk 0:01:38]} 21. Nd5 {[%clk
0:02:09.6]} 21... Ng6 {[%clk 0:01:25.7]} 22. Qd1 {[%clk 0:01:53.2]} 22... Nh4
{[%clk 0:01:12.1]} 23. h3 {[%clk 0:01:39.1]} 23... Qd7 {[%clk 0:00:51.2]} 24. a5
{[%clk 0:01:27.8]} 24... Qf7 {[%clk 0:00:46.4]} 25. axb6 {[%clk 0:01:26]} 25...
axb6 {[%clk 0:00:47.3]} 26. Ra1 {[%clk 0:01:24.7]} 26... h5 {[%clk 0:00:42]} 27.
Bb4 {[%clk 0:01:12.1]} 27... hxg4 {[%clk 0:00:39.8]} 28. fxg4 {[%clk 0:01:07.5]}
28... Nxd5 {[%clk 0:00:35]} 29. cxd5 {[%clk 0:01:03.9]} 29... f3 {[%clk
0:00:34.9]} 30. Bd2 {[%clk 0:01:02.2]} 30... Bh6 {[%clk 0:00:30.3]} 31. Ra7
{[%clk 0:01:00.8]} 31... Ng2 {[%clk 0:00:18.8]} 32. Qc1 {[%clk 0:00:52.6]} 32...
Qe7 {[%clk 0:00:17]} 33. Qxc7 {[%clk 0:00:49.8]} 33... Qf6 {[%clk 0:00:10.3]}
34. Rc1 {[%clk 0:00:44.8]} 34... Nf4 {[%clk 0:00:10.2]} 35. Qe7 {[%clk
0:00:43.6]} 35... Ne2+ {[%clk 0:00:08.8]} 36. Kh2 {[%clk 0:00:41.8]} 36... Nxc1
{[%clk 0:00:08]} 37. Qxf6+ {[%clk 0:00:40.2]} 37... Rxf6 {[%clk 0:00:07.7]} 38.
Bxc1 {[%clk 0:00:40.8]} 38... Rf8 {[%clk 0:00:03.6]} 39. Be3 {[%clk 0:00:40.9]}
39... Rc8 {[%clk 0:00:03.3]} 40. Kg3 {[%clk 0:00:40.2]} 40... Rc3 {[%clk
0:00:02.3]} 41. Kxf3 {[%clk 0:00:40.2]} 41... Rxd3 {[%clk 0:00:02.2]} 42. Nxd3
{[%clk 0:00:39.4]} 1-0

[Event "Early-Titled-Tuesday-Blitz-July-09-2024"]
[Site "Chess.com"]
[Date "2024.07.09"]
[Round "6"]
[White "maurovargas01"]
[Black "Sofia_Blokhin"]
[Result "0-1"]
[WhiteElo "1961"]
[BlackElo "2192"]
[TimeControl "180+1"]
[EndTime "9:08:41 PDT"]
[Termination "Sofia_Blokhin won by checkmate"]

1. e4 {[%clk 0:03:00.5]} 1... c5 {[%clk 0:02:59.5]} 2. Nc3 {[%clk 0:02:58.5]}
2... e6 {[%clk 0:02:59.1]} 3. f4 {[%clk 0:02:59.4]} 3... a6 {[%clk 0:02:58.6]}
4. Nf3 {[%clk 0:03:00.3]} 4... Nc6 {[%clk 0:02:57.4]} 5. d3 {[%clk 0:03:01.2]}
5... g6 {[%clk 0:02:56.7]} 6. g4 {[%clk 0:03:00.9]} 6... Bg7 {[%clk 0:02:56.8]}
7. Bg2 {[%clk 0:03:00.9]} 7... Nge7 {[%clk 0:02:55.6]} 8. O-O {[%clk 0:03:00.4]}
8... d5 {[%clk 0:02:55.2]} 9. e5 {[%clk 0:03:00.1]} 9... O-O {[%clk 0:02:54.4]}
10. Qe1 {[%clk 0:02:59.5]} 10... b5 {[%clk 0:02:42.9]} 11. Nd1 {[%clk
0:02:58.8]} 11... Bb7 {[%clk 0:02:31.1]} 12. c3 {[%clk 0:02:58.5]} 12... d4
{[%clk 0:02:28.2]} 13. c4 {[%clk 0:02:50.9]} 13... bxc4 {[%clk 0:02:26.7]} 14.
dxc4 {[%clk 0:02:50.4]} 14... Rb8 {[%clk 0:02:22.2]} 15. b3 {[%clk 0:02:47.5]}
15... Nb4 {[%clk 0:02:15.6]} 16. Rf2 {[%clk 0:02:41.4]} 16... Nd3 {[%clk
0:02:13.2]} 17. Qf1 {[%clk 0:02:35.4]} 17... Nxf2 {[%clk 0:02:12.1]} 18. Qxf2
{[%clk 0:02:35.2]} 18... f6 {[%clk 0:02:08.4]} 19. exf6 {[%clk 0:02:32.8]} 19...
Bxf6 {[%clk 0:02:03.6]} 20. g5 {[%clk 0:02:28.2]} 20... Bg7 {[%clk 0:02:01.7]}
21. Qh4 {[%clk 0:02:18.6]} 21... Nf5 {[%clk 0:02:00.2]} 22. Qh3 {[%clk
0:02:16.8]} 22... d3 {[%clk 0:01:51.9]} 23. Rb1 {[%clk 0:02:15]} 23... Nd4
{[%clk 0:01:32.5]} 24. Nf2 {[%clk 0:02:01.9]} 24... Ne2+ {[%clk 0:01:26.6]} 25.
Kh1 {[%clk 0:01:59.8]} 25... Nxf4 {[%clk 0:01:11.1]} 26. Bxf4 {[%clk 0:01:49.8]}
26... Rxf4 {[%clk 0:01:10.3]} 27. Qxe6+ {[%clk 0:01:48.1]} 27... Kh8 {[%clk
0:01:10.1]} 28. Qh3 {[%clk 0:00:48.4]} 28... Qf8 {[%clk 0:01:03.9]} 29. Nh4
{[%clk 0:00:20.5]} 29... Bxg2+ {[%clk 0:00:58.2]} 30. Kxg2 {[%clk 0:00:18.1]}
30... Rxf2+ {[%clk 0:00:57.6]} 31. Kg1 {[%clk 0:00:18]} 31... Kg8 {[%clk
0:00:53.8]} 32. Qe6+ {[%clk 0:00:16.9]} 32... Qf7 {[%clk 0:00:53]} 33. Qh3
{[%clk 0:00:14.5]} 33... Rc2 {[%clk 0:00:45.7]} 34. Rf1 {[%clk 0:00:11.1]} 34...
Bd4+ {[%clk 0:00:43.7]} 35. Kh1 {[%clk 0:00:10.2]} 35... Qb7+ {[%clk 0:00:41.9]}
36. Ng2 {[%clk 0:00:07.7]} 36... Re8 {[%clk 0:00:29.8]} 37. Qxd3 {[%clk
0:00:06]} 37... Qxg2# {[%clk 0:00:28.1]} 0-1

[Event "Early-Titled-Tuesday-Blitz-July-09-2024"]
[Site "Chess.com"]
[Date "2024.07.09"]
[Round "6"]
[White "adreyd"]
[Black "wannabe2700"]
[Result "0-1"]
[WhiteElo "2416"]
[BlackElo "2545"]
[TimeControl "180+1"]
[EndTime "9:08:43 PDT"]
[Termination "wannabe2700 won on time"]

1. d4 {[%clk 0:03:00.9]} 1... Nf6 {[%clk 0:02:55.6]} 2. Nf3 {[%clk 0:03:00.3]}
2... c5 {[%clk 0:02:52.5]} 3. d5 {[%clk 0:02:49.7]} 3... e6 {[%clk 0:02:51.6]}
4. c4 {[%clk 0:02:45]} 4... exd5 {[%clk 0:02:50.5]} 5. cxd5 {[%clk 0:02:44.6]}
5... d6 {[%clk 0:02:50.4]} 6. Nc3 {[%clk 0:02:44.1]} 6... g6 {[%clk 0:02:50.5]}
7. Bf4 {[%clk 0:02:42.5]} 7... a6 {[%clk 0:02:48.2]} 8. a4 {[%clk 0:02:41.2]}
8... Bg7 {[%clk 0:02:48.1]} 9. h3 {[%clk 0:02:36.6]} 9... O-O {[%clk 0:02:47.9]}
10. e3 {[%clk 0:02:36.5]} 10... Re8 {[%clk 0:02:47.6]} 11. Be2 {[%clk
0:02:30.8]} 11... Ne4 {[%clk 0:02:47.3]} 12. Qc2 {[%clk 0:02:17.2]} 12... Bf5
{[%clk 0:02:45.2]} 13. Bd3 {[%clk 0:02:13.7]} 13... Qa5 {[%clk 0:02:42.9]} 14.
O-O {[%clk 0:02:09.7]} 14... Nxc3 {[%clk 0:02:43.1]} 15. bxc3 {[%clk 0:01:47]}
15... Bxd3 {[%clk 0:02:42.8]} 16. Qxd3 {[%clk 0:01:46.9]} 16... Qxc3 {[%clk
0:02:42.9]} 17. Qxc3 {[%clk 0:01:46.4]} 17... Bxc3 {[%clk 0:02:42.7]} 18. Rab1
{[%clk 0:01:47]} 18... Bb4 {[%clk 0:02:07.9]} 19. Bxd6 {[%clk 0:01:44.2]} 19...
b5 {[%clk 0:01:51.3]} 20. axb5 {[%clk 0:01:35.5]} 20... axb5 {[%clk 0:01:52.2]}
21. Ne5 {[%clk 0:01:17.2]} 21... Bc3 {[%clk 0:00:57.7]} 22. Nc6 {[%clk
0:00:36.7]} 22... Nxc6 {[%clk 0:00:47.3]} 23. dxc6 {[%clk 0:00:37.6]} 23... Bb4
{[%clk 0:00:38.1]} 24. Rfc1 {[%clk 0:00:30.7]} 24... Ba3 {[%clk 0:00:26.6]} 25.
Rc2 {[%clk 0:00:26.6]} 25... Ra6 {[%clk 0:00:25.5]} 26. Rxb5 {[%clk 0:00:12.7]}
26... Rxc6 {[%clk 0:00:24.5]} 27. Rb3 {[%clk 0:00:03.8]} 27... Ra8 {[%clk
0:00:20.5]} 28. Be7 {[%clk 0:00:02.3]} 28... Rc7 {[%clk 0:00:11.6]} 29. Bd6
{[%clk 0:00:01.6]} 29... Rc6 {[%clk 0:00:08.4]} 30. Be7 {[%clk 0:00:01.9]} 30...
Ra7 {[%clk 0:00:07.2]} 0-1

[Event "Early-Titled-Tuesday-Blitz-July-09-2024"]
[Site "Chess.com"]
[Date "2024.07.09"]
[Round "6"]
[White "lildoggo2007"]
[Black "LunaTheTuna2013"]
[Result "1-0"]
[WhiteElo "2414"]
[BlackElo "2058"]
[TimeControl "180+1"]
[EndTime "9:08:43 PDT"]
[Termination "lildoggo2007 won by resignation"]

1. e4 {[%clk 0:02:54.1]} 1... e6 {[%clk 0:02:59.8]} 2. d4 {[%clk 0:02:54]} 2...
d5 {[%clk 0:03:00.1]} 3. Nc3 {[%clk 0:02:53.5]} 3... Nf6 {[%clk 0:02:59.5]} 4.
e5 {[%clk 0:02:53.6]} 4... Nfd7 {[%clk 0:03:00]} 5. f4 {[%clk 0:02:54.3]} 5...
c5 {[%clk 0:03:00.5]} 6. Nf3 {[%clk 0:02:55]} 6... Nc6 {[%clk 0:03:00.8]} 7. Be3
{[%clk 0:02:55.4]} 7... Be7 {[%clk 0:03:00.5]} 8. Qd2 {[%clk 0:02:55.5]} 8...
O-O {[%clk 0:02:58]} 9. Be2 {[%clk 0:02:55.6]} 9... Qa5 {[%clk 0:02:48.2]} 10.
O-O {[%clk 0:02:53.4]} 10... cxd4 {[%clk 0:02:44.8]} 11. Nxd4 {[%clk 0:02:53.5]}
11... Nxd4 {[%clk 0:02:43.4]} 12. Bxd4 {[%clk 0:02:53.4]} 12... Bc5 {[%clk
0:02:41.5]} 13. a3 {[%clk 0:02:46]} 13... Qb6 {[%clk 0:02:38.4]} 14. Bxc5 {[%clk
0:02:41.9]} 14... Qxc5+ {[%clk 0:02:38.8]} 15. Kh1 {[%clk 0:02:42.1]} 15... Nb6
{[%clk 0:02:39]} 16. b4 {[%clk 0:02:40.3]} 16... Qc7 {[%clk 0:02:34.2]} 17. Nb5
{[%clk 0:02:40.3]} 17... Qc6 {[%clk 0:02:32.9]} 18. Nd6 {[%clk 0:02:38.8]} 18...
Bd7 {[%clk 0:02:31.4]} 19. Rac1 {[%clk 0:02:28.5]} 19... Na4 {[%clk 0:02:21.7]}
20. c4 {[%clk 0:02:17]} 20... dxc4 {[%clk 0:02:19.2]} 21. Bxc4 {[%clk
0:02:09.4]} 21... Qb6 {[%clk 0:01:54.2]} 22. Bb3 {[%clk 0:01:57]} 22... Rfd8
{[%clk 0:01:45]} 23. f5 {[%clk 0:01:51.6]} 23... Bb5 {[%clk 0:01:44.7]} 24. fxe6
{[%clk 0:01:47.4]} 24... Bxf1 {[%clk 0:01:33.8]} 25. exf7+ {[%clk 0:01:46.7]}
25... Kf8 {[%clk 0:01:34.1]} 26. Rxf1 {[%clk 0:01:40.1]} 26... Qc6 {[%clk
0:01:21.6]} 27. Qd3 {[%clk 0:01:22.3]} 27... g6 {[%clk 0:01:10.6]} 28. Qe3
{[%clk 0:01:06]} 28... Kg7 {[%clk 0:00:58.9]} 29. Bxa4 {[%clk 0:00:30.5]} 29...
Qxa4 {[%clk 0:00:57.8]} 30. e6 {[%clk 0:00:23.5]} 30... Rxd6 {[%clk 0:00:55.1]}
31. e7 {[%clk 0:00:23.1]} 31... Rf6 {[%clk 0:00:41]} 32. Qe5 {[%clk 0:00:13.9]}
32... Qc6 {[%clk 0:00:12]} 33. Qxf6+ {[%clk 0:00:10.2]} 33... Qxf6 {[%clk
0:00:11]} 34. Rxf6 {[%clk 0:00:10.9]} 34... Kxf6 {[%clk 0:00:11.9]} 35. f8=Q+
{[%clk 0:00:11.2]} 1-0

[Event "Early-Titled-Tuesday-Blitz-July-09-2024"]
[Site "Chess.com"]
[Date "2024.07.09"]
[Round "6"]
[White "Bauman_Guy"]
[Black "RandomNoob04"]
[Result "0-1"]
[WhiteElo "2946"]
[BlackElo "2776"]
[TimeControl "180+1"]
[EndTime "9:08:44 PDT"]
[Termination "RandomNoob04 won by checkmate"]

1. e4 {[%clk 0:03:00.9]} 1... d5 {[%clk 0:02:59.8]} 2. exd5 {[%clk 0:03:00.7]}
2... Qxd5 {[%clk 0:03:00.7]} 3. Nc3 {[%clk 0:03:00.8]} 3... Qa5 {[%clk
0:03:01.3]} 4. d4 {[%clk 0:03:01.1]} 4... Nf6 {[%clk 0:03:01.9]} 5. Nf3 {[%clk
0:03:01.1]} 5... Bf5 {[%clk 0:03:02.6]} 6. g3 {[%clk 0:02:58]} 6... e6 {[%clk
0:03:00.7]} 7. Bg2 {[%clk 0:02:57.4]} 7... Ne4 {[%clk 0:02:50.1]} 8. Bd2 {[%clk
0:02:55.1]} 8... Nxd2 {[%clk 0:02:49.8]} 9. Qxd2 {[%clk 0:02:54.3]} 9... Bb4
{[%clk 0:02:47.3]} 10. O-O {[%clk 0:02:50.4]} 10... c6 {[%clk 0:02:40.9]} 11.
Nh4 {[%clk 0:02:47]} 11... Bg6 {[%clk 0:02:32]} 12. Nxg6 {[%clk 0:02:43]} 12...
hxg6 {[%clk 0:02:32.9]} 13. Rfe1 {[%clk 0:02:42.7]} 13... O-O {[%clk 0:02:33.1]}
14. Re3 {[%clk 0:02:41.3]} 14... Rd8 {[%clk 0:02:32]} 15. a3 {[%clk 0:02:40.8]}
15... Bc5 {[%clk 0:02:24.5]} 16. Rd3 {[%clk 0:02:33.7]} 16... Be7 {[%clk
0:02:25.2]} 17. Rd1 {[%clk 0:02:31.6]} 17... Na6 {[%clk 0:02:22.1]} 18. Qe2
{[%clk 0:02:28.3]} 18... Rd7 {[%clk 0:02:19.7]} 19. h4 {[%clk 0:02:26.8]} 19...
Rad8 {[%clk 0:02:19.8]} 20. Ne4 {[%clk 0:02:26.7]} 20... Qb6 {[%clk 0:02:15.7]}
21. c3 {[%clk 0:02:19.3]} 21... Qb5 {[%clk 0:02:09.4]} 22. Bh3 {[%clk
0:01:59.5]} 22... c5 {[%clk 0:02:03.2]} 23. h5 {[%clk 0:01:59.1]} 23... c4
{[%clk 0:01:53.7]} 24. Re3 {[%clk 0:01:32.6]} 24... Qxh5 {[%clk 0:01:49]} 25.
Bg4 {[%clk 0:01:32.6]} 25... Qb5 {[%clk 0:01:48.8]} 26. a4 {[%clk 0:01:09.3]}
26... Qxa4 {[%clk 0:01:39.8]} 27. Nd2 {[%clk 0:01:08.4]} 27... b5 {[%clk
0:01:16.5]} 28. Kg2 {[%clk 0:00:46]} 28... Nc7 {[%clk 0:01:14.4]} 29. Rh1 {[%clk
0:00:46.4]} 29... Qc2 {[%clk 0:01:05.9]} 30. Qe1 {[%clk 0:00:27.8]} 30... Qxb2
{[%clk 0:01:02.8]} 31. Nf3 {[%clk 0:00:25.4]} 31... Nd5 {[%clk 0:01:00]} 32.
Rxe6 {[%clk 0:00:24.9]} 32... Qxc3 {[%clk 0:00:42.4]} 33. Qg1 {[%clk 0:00:24.3]}
33... f5 {[%clk 0:00:32.7]} 34. Ne5 {[%clk 0:00:14.6]} 34... fxg4 {[%clk
0:00:25.9]} 35. Qh2 {[%clk 0:00:14.6]} 35... Ne3+ {[%clk 0:00:20.1]} 36. fxe3
{[%clk 0:00:15]} 36... Qd2+ {[%clk 0:00:19.7]} 37. Kf1 {[%clk 0:00:14.5]} 37...
Rf8+ {[%clk 0:00:16.1]} 38. Kg1 {[%clk 0:00:13.2]} 38... Qe1+ {[%clk 0:00:16.2]}
39. Kg2 {[%clk 0:00:13.6]} 39... Rf2# {[%clk 0:00:15.8]} 0-1

[Event "Early-Titled-Tuesday-Blitz-July-09-2024"]
[Site "Chess.com"]
[Date "2024.07.09"]
[Round "6"]
[White "english_player_89"]
[Black "j_coca"]
[Result "0-1"]
[WhiteElo "2516"]
[BlackElo "2424"]
[TimeControl "180+1"]
[EndTime "9:08:45 PDT"]
[Termination "j_coca won by checkmate"]

1. e4 {[%clk 0:02:35.3]} 1... g6 {[%clk 0:02:54.1]} 2. d4 {[%clk 0:02:35]} 2...
Bg7 {[%clk 0:02:23.8]} 3. Nf3 {[%clk 0:02:35.1]} 3... d6 {[%clk 0:02:02.1]} 4.
h3 {[%clk 0:02:34.6]} 4... Nh6 {[%clk 0:01:58.4]} 5. Bd3 {[%clk 0:02:34.8]} 5...
f6 {[%clk 0:01:53.8]} 6. O-O {[%clk 0:02:34.4]} 6... O-O {[%clk 0:01:52.5]} 7.
e5 {[%clk 0:02:33.3]} 7... Nc6 {[%clk 0:01:45.2]} 8. Re1 {[%clk 0:02:15.6]} 8...
Nf5 {[%clk 0:01:36.9]} 9. e6 {[%clk 0:02:12.9]} 9... Nfxd4 {[%clk 0:01:30.9]}
10. Nxd4 {[%clk 0:02:12.6]} 10... Nxd4 {[%clk 0:01:30.5]} 11. Bxg6 {[%clk
0:02:13.1]} 11... Nxe6 {[%clk 0:01:23.5]} 12. Bf5 {[%clk 0:01:58.4]} 12... Nc5
{[%clk 0:01:18.5]} 13. Bxc8 {[%clk 0:01:43.3]} 13... Rxc8 {[%clk 0:01:16.8]} 14.
b4 {[%clk 0:01:39.5]} 14... Nd7 {[%clk 0:01:15.5]} 15. Qd5+ {[%clk 0:01:39]}
15... Kh8 {[%clk 0:01:15.1]} 16. Qxb7 {[%clk 0:01:36.2]} 16... e5 {[%clk
0:01:14.1]} 17. Qxa7 {[%clk 0:01:34.3]} 17... Nb6 {[%clk 0:01:12.8]} 18. Nd2
{[%clk 0:01:26.1]} 18... f5 {[%clk 0:01:11.5]} 19. Bb2 {[%clk 0:01:25.3]} 19...
Rf7 {[%clk 0:01:02.1]} 20. a4 {[%clk 0:01:06.6]} 20... Nd5 {[%clk 0:00:59.1]}
21. Qb7 {[%clk 0:00:57.2]} 21... Nf4 {[%clk 0:00:57.1]} 22. Nf3 {[%clk
0:00:45.8]} 22... Qf8 {[%clk 0:00:45.9]} 23. a5 {[%clk 0:00:43.8]} 23... Re7
{[%clk 0:00:45.8]} 24. a6 {[%clk 0:00:41.2]} 24... c5 {[%clk 0:00:44.9]} 25. Qb5
{[%clk 0:00:30.3]} 25... e4 {[%clk 0:00:41.2]} 26. Bxg7+ {[%clk 0:00:28.9]}
26... Rxg7 {[%clk 0:00:40.7]} 27. Nh4 {[%clk 0:00:22]} 27... Qf6 {[%clk
0:00:38]} 28. Qb7 {[%clk 0:00:16.5]} 28... Rcg8 {[%clk 0:00:27.2]} 29. Qxg7+
{[%clk 0:00:09.2]} 29... Qxg7 {[%clk 0:00:26.4]} 30. g3 {[%clk 0:00:08.3]} 30...
Nxh3+ {[%clk 0:00:25.9]} 31. Kg2 {[%clk 0:00:07.5]} 31... Nxf2 {[%clk
0:00:25.8]} 32. Nxf5 {[%clk 0:00:07.8]} 32... Qg4 {[%clk 0:00:24.4]} 33. a7
{[%clk 0:00:06.4]} 33... Qf3+ {[%clk 0:00:24.6]} 34. Kh2 {[%clk 0:00:05.7]}
34... Ng4+ {[%clk 0:00:24.2]} 35. Kh3 {[%clk 0:00:05]} 35... Qxf5 {[%clk
0:00:24.6]} 36. a8=Q {[%clk 0:00:05.1]} 36... Ne3+ {[%clk 0:00:25]} 37. Kh2
{[%clk 0:00:04.7]} 37... Qf2+ {[%clk 0:00:25]} 38. Kh3 {[%clk 0:00:04.5]} 38...
Qg2+ {[%clk 0:00:25.7]} 39. Kh4 {[%clk 0:00:04.7]} 39... Qh2# {[%clk 0:00:26.6]}
0-1

[Event "Early-Titled-Tuesday-Blitz-July-09-2024"]
[Site "Chess.com"]
[Date "2024.07.09"]
[Round "6"]
[White "Fandorine"]
[Black "FARIZA2018"]
[Result "1-0"]
[WhiteElo "2912"]
[BlackElo "2630"]
[TimeControl "180+1"]
[EndTime "9:08:47 PDT"]
[Termination "Fandorine won by resignation"]

1. c4 {[%clk 0:03:00.9]} 1... e6 {[%clk 0:02:59.9]} 2. g3 {[%clk 0:03:01]} 2...
d5 {[%clk 0:03:00.1]} 3. Bg2 {[%clk 0:03:01.3]} 3... dxc4 {[%clk 0:02:57.1]} 4.
Qa4+ {[%clk 0:03:00.6]} 4... Nd7 {[%clk 0:02:56.9]} 5. Qxc4 {[%clk 0:03:01.1]}
5... a6 {[%clk 0:02:56.5]} 6. Qc2 {[%clk 0:03:00.4]} 6... c5 {[%clk 0:02:55.8]}
7. a4 {[%clk 0:03:00.7]} 7... Ngf6 {[%clk 0:02:54.6]} 8. a5 {[%clk 0:02:59.2]}
8... Rb8 {[%clk 0:02:47.8]} 9. Nf3 {[%clk 0:02:59.1]} 9... b6 {[%clk 0:02:45.9]}
10. axb6 {[%clk 0:03:00]} 10... Nxb6 {[%clk 0:02:45.4]} 11. O-O {[%clk
0:03:00.9]} 11... Be7 {[%clk 0:02:45.2]} 12. d3 {[%clk 0:02:59.1]} 12... Bb7
{[%clk 0:02:45]} 13. Bd2 {[%clk 0:02:48.8]} 13... O-O {[%clk 0:02:34.7]} 14. Ba5
{[%clk 0:02:48.4]} 14... Qd6 {[%clk 0:02:34.8]} 15. Nbd2 {[%clk 0:02:47.7]}
15... Nbd5 {[%clk 0:02:26.3]} 16. Nc4 {[%clk 0:02:46.4]} 16... Qd7 {[%clk
0:02:25.9]} 17. Nfe5 {[%clk 0:02:40.3]} 17... Qb5 {[%clk 0:02:22.1]} 18. Qa4
{[%clk 0:02:28.4]} 18... Rfc8 {[%clk 0:02:17.9]} 19. Rfc1 {[%clk 0:02:28.1]}
19... Bc6 {[%clk 0:02:12.4]} 20. Nxc6 {[%clk 0:02:27]} 20... Rxc6 {[%clk
0:02:05]} 21. Be1 {[%clk 0:02:16.4]} 21... Nd7 {[%clk 0:01:40.2]} 22. Ra2 {[%clk
0:01:53.3]} 22... Bf6 {[%clk 0:01:32.2]} 23. e4 {[%clk 0:01:46]} 23... N5b6
{[%clk 0:01:25.4]} 24. Qxa6 {[%clk 0:01:29.2]} 24... Qxa6 {[%clk 0:01:19.8]} 25.
Rxa6 {[%clk 0:01:29]} 25... Rcc8 {[%clk 0:01:18.6]} 26. Nd6 {[%clk 0:01:23]}
26... Rd8 {[%clk 0:01:17.3]} 27. Ba5 {[%clk 0:01:16.8]} 27... Rf8 {[%clk
0:01:01.3]} 28. b3 {[%clk 0:01:11.1]} 28... Nc8 {[%clk 0:00:53.5]} 29. Nxc8
{[%clk 0:00:52.6]} 29... Rfxc8 {[%clk 0:00:53.4]} 30. b4 {[%clk 0:00:49.1]}
30... Bd4 {[%clk 0:00:37.1]} 31. Bf1 {[%clk 0:00:40.9]} 31... e5 {[%clk
0:00:36]} 32. Bh3 {[%clk 0:00:37.5]} 32... Rb7 {[%clk 0:00:07.2]} 33. bxc5
{[%clk 0:00:30.7]} 33... Rxc5 {[%clk 0:00:03.7]} 34. Rxc5 {[%clk 0:00:27]} 34...
Bxc5 {[%clk 0:00:03.7]} 35. Bxd7 {[%clk 0:00:24.4]} 35... Rxd7 {[%clk
0:00:03.3]} 36. Ra8+ {[%clk 0:00:24.7]} 36... Bf8 {[%clk 0:00:03.4]} 37. Bb4
{[%clk 0:00:25.4]} 1-0

[Event "Early-Titled-Tuesday-Blitz-July-09-2024"]
[Site "Chess.com"]
[Date "2024.07.09"]
[Round "6"]
[White "Mysterio47"]
[Black "Flaccidmoves"]
[Result "1-0"]
[WhiteElo "2755"]
[BlackElo "2582"]
[TimeControl "180+1"]
[EndTime "9:08:47 PDT"]
[Termination "Mysterio47 won by resignation"]

1. e4 {[%clk 0:03:00.9]} 1... e6 {[%clk 0:02:55.8]} 2. d4 {[%clk 0:02:59]} 2...
d5 {[%clk 0:02:56.1]} 3. e5 {[%clk 0:02:58.5]} 3... c5 {[%clk 0:02:56.7]} 4. c3
{[%clk 0:02:58.2]} 4... Nc6 {[%clk 0:02:56.7]} 5. Nf3 {[%clk 0:02:58.5]} 5...
Bd7 {[%clk 0:02:56.6]} 6. Be2 {[%clk 0:02:57.7]} 6... Nh6 {[%clk 0:02:51.5]} 7.
Bxh6 {[%clk 0:02:50]} 7... gxh6 {[%clk 0:02:51]} 8. O-O {[%clk 0:02:49.6]} 8...
Bg7 {[%clk 0:02:47.3]} 9. Na3 {[%clk 0:02:38.5]} 9... O-O {[%clk 0:02:45.7]} 10.
Qd2 {[%clk 0:02:28.9]} 10... cxd4 {[%clk 0:02:43.9]} 11. cxd4 {[%clk 0:02:27]}
11... f6 {[%clk 0:02:44]} 12. Bb5 {[%clk 0:02:22.5]} 12... fxe5 {[%clk
0:02:42.3]} 13. Bxc6 {[%clk 0:02:22.8]} 13... Bxc6 {[%clk 0:02:38.2]} 14. Nxe5
{[%clk 0:02:23.2]} 14... Bxe5 {[%clk 0:02:18.4]} 15. dxe5 {[%clk 0:02:21.5]}
15... Qg5 {[%clk 0:02:18.6]} 16. f4 {[%clk 0:02:20.6]} 16... Qg6 {[%clk
0:02:17.8]} 17. Nc2 {[%clk 0:02:12.7]} 17... d4 {[%clk 0:02:01.6]} 18. Nxd4
{[%clk 0:01:03.6]} 18... Rad8 {[%clk 0:02:01.2]} 19. Nxc6 {[%clk 0:01:03.9]}
19... Rxd2 {[%clk 0:01:45.4]} 20. Ne7+ {[%clk 0:01:02.3]} 20... Kf7 {[%clk
0:01:45.9]} 21. Nxg6 {[%clk 0:01:02.6]} 21... hxg6 {[%clk 0:01:46.8]} 22. Rf2
{[%clk 0:00:58.7]} 22... Rxf2 {[%clk 0:01:43.3]} 23. Kxf2 {[%clk 0:00:59.6]}
23... Rc8 {[%clk 0:01:43.5]} 24. Re1 {[%clk 0:00:57.3]} 24... g5 {[%clk
0:01:42.2]} 25. fxg5 {[%clk 0:00:50.5]} 25... hxg5 {[%clk 0:01:43.1]} 26. Kf3
{[%clk 0:00:42.6]} 26... Kg6 {[%clk 0:01:39.9]} 27. Re2 {[%clk 0:00:35.1]} 27...
Rc4 {[%clk 0:01:34.6]} 28. h3 {[%clk 0:00:32]} 28... Kf5 {[%clk 0:01:26.1]} 29.
g4+ {[%clk 0:00:29.9]} 29... Kg6 {[%clk 0:01:25.7]} 30. Rd2 {[%clk 0:00:28.3]}
30... Rf4+ {[%clk 0:01:21.3]} 31. Ke3 {[%clk 0:00:26.3]} 31... Rb4 {[%clk
0:01:16.7]} 32. b3 {[%clk 0:00:22.6]} 32... Rb5 {[%clk 0:01:11.5]} 33. Ke4
{[%clk 0:00:22.4]} 33... Ra5 {[%clk 0:00:58.6]} 34. Rd6 {[%clk 0:00:19.4]} 34...
Rxa2 {[%clk 0:00:50.4]} 35. Rxe6+ {[%clk 0:00:19.3]} 35... Kf7 {[%clk
0:00:47.6]} 36. Rf6+ {[%clk 0:00:19.3]} 36... Kg7 {[%clk 0:00:47.4]} 37. Kf5
{[%clk 0:00:19.1]} 37... Rb2 {[%clk 0:00:42.8]} 38. Kxg5 {[%clk 0:00:17.8]}
38... Rxb3 {[%clk 0:00:41.3]} 39. h4 {[%clk 0:00:17.4]} 39... a5 {[%clk
0:00:38.8]} 40. h5 {[%clk 0:00:17.5]} 40... a4 {[%clk 0:00:36.9]} 41. h6+ {[%clk
0:00:17.8]} 41... Kg8 {[%clk 0:00:36.2]} 42. Kg6 {[%clk 0:00:17.1]} 42... Rh3
{[%clk 0:00:26.6]} 43. e6 {[%clk 0:00:16]} 1-0